[Event "POR-chT 1st Divison 2018"]
[Site "Maia"]
[Date "2018.07.21"]
[Round "8"]
[White "Gomes, Rui Pedro De Sousa"]
[Black "Espineira Gonzalez, Diego"]
[Result "0-1"]
[ECO "D00"]
[WhiteElo "1750"]
[BlackElo "2327"]
[Annotator "NA"]
[PlyCount "70"]
[EventDate "2018.07.16"]
[EventType "team-tourn"]
[EventCountry "POR"]
[SourceTitle "playchess.com"]
[Source "ChessBase"]
[SourceQuality "1"]
[TimeControl "5400+30"]

1. d4 {[%emt 0:00:00]} d5 {[%emt 0:02:26]} 2. Bf4 {[%emt 0:00:00]} Nf6 {[%emt 0:00:07]} 3. e3 {[%emt 0:00:15]} c5 {[%emt 0:00:14]} 4. c3 {[%emt 0:00:31]} Qb6 {[%emt 0:00:14]} 5. Qb3 {[%emt 0:00:51]} c4 {[%emt 0:00:35]} 6. Qc2 {[%emt 0:04:02]} Nc6 {[%emt 0:00:11]} 7. Nd2 {[%emt 0:00:45]} g6 {[%emt 0:05:10]} 8. e4 {[%emt 0:08:45]} e6 {[%emt 0:04:13]} 9. Rb1 {[%emt 0:11:09]} Bg7 {[%emt 0:01:13]} 10. Ngf3 {[%emt 0:01:47]} O-O {[%emt 0:03:04]} 11. Ne5 {[%emt 0:09:51]} Nh5 {[%emt 0:02:53]} 12. Be3 {[%emt 0:06:25]} f5 {[%emt 0:00:54]} 13. exf5 {[%emt 0:12:37]} exf5 {[%emt 0:00:13]} 14. Ndxc4 {[%emt 0:07:31]} dxc4 {[%emt 0:00:07]} 15. Bxc4+ {[%emt 0:00:15]} Kh8 {[%emt 0:00:06]} 16. Nf7+ {[%emt 0:01:01]} Rxf7 {[%emt 0:00:05]} 17. Bxf7 {[%emt 0:00:08]} f4 {[%emt 0:04:34]} 18. Bxg6 {[%emt 0:04:43]} Nb4 {[%emt 0:02:08]} 19. cxb4 {[%emt 0:05:04]} hxg6 {[%emt 0:00:35]} 20. Qc5 {[%emt 0:02:56]} fxe3 {[%emt 0:02:18]} 21. fxe3 {[%emt 0:01:04]} Qe6 {[%emt 0:00:52]} 22. d5 {[%emt 0:02:00]} Qf5 {[%emt 0:01:53]} 23. Rd1 {[%emt 0:01:33]} Bd7 {[%emt 0:00:12]} 24. d6 {[%emt 0:05:41]} Qe4 {[%emt 0:05:45]} 25. O-O {[%emt 0:01:11]} Rc8 {[%emt 0:00:09]} 26. Qg5 {[%emt 0:00:47]} Rc2 {[%emt 0:02:02]} 27. Rf2 {[%emt 0:04:04]} Rxf2 {[%emt 0:07:55]} 28. Kxf2 {[%emt 0:00:04]} Nf6 {[%emt 0:00:23]} 29. Kg1 {[%emt 0:05:05]} Ng4 {[%emt 0:04:48]} 30. Re1 {[%emt 0:01:18]} Bc6 {[%emt 0:01:04]} 31. Qh4+ {[%emt 0:01:27]} Kg8 {[%emt 0:00:12]} 32. Re2 {[%emt 0:00:38]} Bf6 {[%emt 0:01:08]} 33. Qe1 {[%emt 0:00:28]} Nxe3 {[%emt 0:01:17]} 34. b5 {[%emt 0:01:22]} Bxb5 {[%emt 0:00:40]} 35. Kh1 {[%emt 0:01:34]} Bxe2 {[%emt 0:00:15]} 0-1

[Event "POR-chT 1st Divison 2018"]
[Site "Maia"]
[Date "2018.07.22"]
[Round "9"]
[White "Fernandes, Antonio"]
[Black "Padeiro, Jose"]
[Result "1-0"]
[ECO "A46"]
[WhiteElo "2403"]
[BlackElo "2284"]
[Annotator "NA"]
[PlyCount "92"]
[EventDate "2018.07.16"]
[EventType "team-tourn"]
[EventCountry "POR"]
[SourceTitle "playchess.com"]
[Source "ChessBase"]
[SourceQuality "1"]
[TimeControl "5400+30"]

1. d4 {[%emt 0:00:25]} Nf6 {[%emt 0:00:19]} 2. Nf3 {[%emt 0:00:22]} e6 {[%emt 0:00:22]} 3. g3 {[%emt 0:00:14]} d5 {[%emt 0:01:01]} 4. Bg2 {[%emt 0:00:02]} Be7 {[%emt 0:00:06]} 5. O-O {[%emt 0:00:10]} O-O {[%emt 0:00:04]} 6. c4 {[%emt 0:00:03]} c6 {[%emt 0:00:11]} 7. Qc2 {[%emt 0:00:18]} b6 {[%emt 0:00:11]} 8. b3 {[%emt 0:00:58]} Bb7 {[%emt 0:00:15]} 9. Nc3 {[%emt 0:00:14]} Na6 {[%emt 0:00:24]} 10. Rd1 {[%emt 0:04:47]} Rc8 {[%emt 0:02:02]} 11. e4 $16 {[%emt 0:08:45] LiveBook: 16 Games} Re8 {[%emt 0:28:36]} 12. Bf4 {[%emt 0:12:43]} h6 {[%emt 0:06:23]} 13. h4 {[%emt 0:02:39]} Bb4 {[%emt 0:04:12]} 14. e5 {[%emt 0:11:18]} Nd7 {[%emt 0:00:42]} 15. Na4 {[%emt 0:05:24]} Bf8 {[%emt 0:03:06]} 16. Qe2 {[%emt 0:04:59]} Nc7 {[%emt 0:03:25]} 17. Nh2 {[%emt 0:04:24]} b5 {[%emt 0:05:29]} 18. Nb2 {[%emt 0:12:18]} bxc4 {[%emt 0:00:26]} 19. bxc4 {[%emt 0:00:02]} c5 {[%emt 0:04:29]} 20. dxc5 {[%emt 0:07:32]} Nxc5 {[%emt 0:02:05]} 21. Ng4 {[%emt 0:00:28]} Nd7 {[%emt 0:10:24]} 22. Ne3 {[%emt 0:02:52]} Qe7 {[%emt 0:09:38]} 23. cxd5 {[%emt 0:10:09]} Nxd5 {[%emt 0:00:20]} 24. Nxd5 {[%emt 0:00:20]} exd5 {[%emt 0:04:05]} 25. Bxd5 {[%emt 0:00:13]} Bxd5 {[%emt 0:00:36]} 26. Rxd5 {[%emt 0:00:02]} Nb6 {[%emt 0:01:04]} 27. Ra5 {[%emt 0:03:54]} Rc6 {[%emt 0:01:52]} 28. Rd1 {[%emt 0:02:45]} Rec8 {[%emt 0:00:32]} 29. Qe4 {[%emt 0:00:21]} Rc2 {[%emt 0:06:46]} 30. Rb1 {[%emt 0:00:38]} Qd7 {[%emt 0:01:26]} 31. Be3 {[%emt 0:00:45]} Re2 {[%emt 0:01:58]} 32. e6 {[%emt 0:03:03]} Qxe6 {[%emt 0:01:14]} 33. Qxe6 {[%emt 0:01:00]} fxe6 {[%emt 0:00:01]} 34. Nd3 {[%emt 0:00:55]} Nd5 {[%emt 0:03:07]} 35. Nf4 {[%emt 0:00:50]} Nxf4 {[%emt 0:00:14]} 36. gxf4 {[%emt 0:00:04]} Rc7 {[%emt 0:00:51]} 37. Rb8 {[%emt 0:00:33]} Kf7 {[%emt 0:00:31]} 38. Ra8 {[%emt 0:00:54]} Be7 {[%emt 0:00:30]} 39. R8xa7 {[%emt 0:00:33]} Rec2 {[%emt 0:00:24]} 40. a4 {[%emt 0:01:27]} Bxh4 {[%emt 0:00:29]} 41. Bb6 {[%emt 0:00:34]} Rxa7 {[%emt 0:00:16]} 42. Rxa7+ {[%emt 0:00:02]} Kg6 {[%emt 0:00:27]} 43. a5 {[%emt 0:00:15]} Rc6 {[%emt 0:00:56]} 44. Rb7 {[%emt 0:00:52]} Rc1+ {[%emt 0:00:25]} 45. Kg2 {[%emt 0:00:02]} Bf6 {[%emt 0:00:35]} 46. a6 {[%emt 0:00:12]} e5 1-0

[Event "POR-chT 1st Divison 2018"]
[Site "Maia"]
[Date "2018.07.22"]
[Round "9"]
[White "Alshameary Puente, Ismael"]
[Black "Dias, Ivo Rodrigues"]
[Result "1/2-1/2"]
[ECO "D78"]
[WhiteElo "2352"]
[BlackElo "2138"]
[Annotator "NA"]
[PlyCount "59"]
[EventDate "2018.07.16"]
[EventType "team-tourn"]
[EventCountry "POR"]
[SourceTitle "playchess.com"]
[Source "ChessBase"]
[SourceQuality "1"]
[TimeControl "5400+30"]

1. d4 Nf6 {[%emt 0:02:15]} 2. c4 {[%emt 0:00:00]} g6 {[%emt 0:00:28]} 3. Nf3 {[%emt 0:00:02]} Bg7 {[%emt 0:00:09]} 4. g3 {[%emt 0:00:04]} c6 {[%emt 0:00:50]} 5. Bg2 {[%emt 0:00:15]} d5 {[%emt 0:00:06]} 6. O-O {[%emt 0:00:29]} O-O {[%emt 0:00:03]} 7. Qb3 {[%emt 0:00:06]} Qb6 {[%emt 0:00:06]} 8. Nc3 {[%emt 0:00:19]} Rd8 {[%emt 0:00:02]} 9. Na4 {[%emt 0:00:27]} Qxb3 {[%emt 0:04:26]} 10. axb3 {[%emt 0:00:20]} Na6 {[%emt 0:01:31]} 11. Bf4 {[%emt 0:00:37]} Bf5 {[%emt 0:02:55]} 12. Rfc1 {[%emt 0:00:33]} Bg4 {[%emt 0:20:29]} 13. Be5 {[%emt 0:09:54]} Ne4 {[%emt 0:20:50]} 14. Bxg7 {[%emt 0:01:49]} Kxg7 {[%emt 0:00:02]} 15. Ne5 {[%emt 0:04:24]} Be6 {[%emt 0:00:49]} 16. Bxe4 {[%emt 0:00:46]} dxe4 {[%emt 0:00:14]} 17. Nc3 {[%emt 0:00:05]} Nb4 {[%emt 0:06:04]} 18. Nxe4 {[%emt 0:02:00]} Rxd4 {[%emt 0:00:23]} 19. Nc5 {[%emt 0:00:06]} Bc8 {[%emt 0:00:46]} 20. Ra4 {[%emt 0:01:53]} a5 {[%emt 0:00:52]} 21. Rca1 {[%emt 0:02:19]} Nc2 {[%emt 0:00:22]} 22. Rc1 {[%emt 0:00:15]} Nb4 {[%emt 0:00:29]} 23. Ncd3 {[%emt 0:21:19]} Nxd3 {[%emt 0:01:40]} 24. Nxd3 {[%emt 0:00:10]} Bf5 {[%emt 0:01:30]} 25. b4 {[%emt 0:11:42]} Bxd3 {[%emt 0:00:19]} 26. exd3 {[%emt 0:00:05]} Rxd3 {[%emt 0:01:18]} 27. bxa5 {[%emt 0:00:42]} Rb3 {[%emt 0:00:21]} 28. Rc2 {[%emt 0:00:04]} c5 {[%emt 0:00:07]} 29. Kf1 {[%emt 0:02:36]} Ra6 {[%emt 0:00:29]} 30. Ra1 {[%emt 0:03:44]} 1/2-1/2

[Event "POR-chT 1st Divison 2018"]
[Site "Maia"]
[Date "2018.07.22"]
[Round "9"]
[White "Espineira Gonzalez, Diego"]
[Black "Carneiro, Carlos"]
[Result "1-0"]
[ECO "B27"]
[WhiteElo "2327"]
[BlackElo "2094"]
[Annotator "NA"]
[PlyCount "79"]
[EventDate "2018.07.16"]
[EventType "team-tourn"]
[EventCountry "POR"]
[SourceTitle "playchess.com"]
[Source "ChessBase"]
[SourceQuality "1"]
[TimeControl "5400+30"]

1. e4 {[%emt 0:00:00]} c5 {[%emt 0:00:08]} 2. Nf3 {[%emt 0:00:00]} g6 {[%emt 0:00:07]} 3. d4 {[%emt 0:00:00]} cxd4 {[%emt 0:00:04]} 4. Nxd4 {[%emt 0:00:00]} Bg7 {[%emt 0:00:13]} 5. Nc3 {[%emt 0:00:00]} Nc6 {[%emt 0:00:07]} 6. Nde2 {[%emt 0:00:00]} Nf6 {[%emt 0:00:24]} 7. g3 {[%emt 0:00:00]} d6 {[%emt 0:05:41]} 8. Bg2 {[%emt 0:00:32]} O-O {[%emt 0:00:39]} 9. O-O {[%emt 0:00:05]} Bd7 {[%emt 0:01:51]} 10. h3 {[%emt 0:00:22]} Rc8 {[%emt 0:00:18]} 11. Nd5 {[%emt 0:00:19]} Nxd5 {[%emt 0:03:10]} 12. exd5 {[%emt 0:00:32]} Na5 {[%emt 0:02:36]} 13. a4 $11 {[%emt 0:02:26] LiveBook: 3 Games} Qb6 {[%emt 0:06:24]} 14. Ra2 {[%emt 0:00:28]} Bf5 {[%emt 0:11:09]} 15. b3 {[%emt 0:01:09]} Qc5 {[%emt 0:09:08]} 16. c4 {[%emt 0:03:54]} Qb4 {[%emt 0:10:47]} 17. Ra3 {[%emt 0:03:21]} b6 {[%emt 0:04:40]} 18. Nd4 {[%emt 0:11:55]} Qc3 {[%emt 0:12:01]} 19. Nb5 {[%emt 0:05:57]} Qc2 {[%emt 0:06:57]} 20. Nxa7 {[%emt 0:00:22]} Rc7 {[%emt 0:02:35]} 21. Nc6 {[%emt 0:01:59]} Qxd1 {[%emt 0:01:18]} 22. Rxd1 {[%emt 0:00:06]} Bc2 {[%emt 0:01:54]} 23. Rd2 {[%emt 0:01:11]} Bf5 {[%emt 0:06:15]} 24. g4 {[%emt 0:06:10]} Bb1 {[%emt 0:01:05]} 25. Re2 {[%emt 0:00:54]} e5 {[%emt 0:00:20]} 26. Be3 {[%emt 0:03:58]} Nxc6 {[%emt 0:03:27]} 27. dxc6 {[%emt 0:00:20]} e4 {[%emt 0:01:11]} 28. Bxb6 {[%emt 0:04:20]} Rxc6 {[%emt 0:00:09]} 29. a5 {[%emt 0:00:04]} f5 {[%emt 0:00:23]} 30. Rd2 {[%emt 0:21:06]} f4 {[%emt 0:03:12]} 31. Bd4 {[%emt 0:01:10]} Bxd4 {[%emt 0:04:01]} 32. Rxd4 {[%emt 0:00:09]} e3 {[%emt 0:03:22]} 33. fxe3 {[%emt 0:00:24]} f3 {[%emt 0:00:27]} 34. Bf1 {[%emt 0:00:09]} d5 {[%emt 0:00:45]} 35. Kf2 {[%emt 0:01:33]} Be4 {[%emt 0:00:36]} 36. a6 {[%emt 0:00:15]} Ra8 {[%emt 0:00:31]} 37. cxd5 {[%emt 0:00:35]} Rc2+ {[%emt 0:00:30]} 38. Kg3 {[%emt 0:00:07]} Rc1 {[%emt 0:00:31]} 39. Rxe4 {[%emt 0:00:26]} Rxf1 {[%emt 0:00:05]} 40. Rf4 {[%emt 0:00:25]} 1-0

[Event "POR-chT 1st Divison 2018"]
[Site "Maia"]
[Date "2018.07.22"]
[Round "9"]
[White "Galvao, Henrique"]
[Black "Neves, Pedro"]
[Result "1/2-1/2"]
[ECO "B44"]
[WhiteElo "2161"]
[BlackElo "2236"]
[Annotator "NA"]
[PlyCount "109"]
[EventDate "2018.07.16"]
[EventType "team-tourn"]
[EventCountry "POR"]
[SourceTitle "playchess.com"]
[Source "ChessBase"]
[SourceQuality "1"]
[TimeControl "5400+30"]

1. e4 {[%emt 0:00:00]} c5 {[%emt 0:00:27]} 2. d4 {[%emt 0:00:12]} cxd4 {[%emt 0:00:07]} 3. Nf3 {[%emt 0:00:05]} Nc6 {[%emt 0:00:23]} 4. Nxd4 {[%emt 0:00:11]} e6 {[%emt 0:01:13]} 5. c4 {[%emt 0:00:53]} Qc7 {[%emt 0:01:16]} 6. Nc3 {[%emt 0:01:42]} a6 {[%emt 0:00:09]} 7. Be2 {[%emt 0:00:27]} Nf6 {[%emt 0:01:45]} 8. O-O {[%emt 0:01:14]} h5 {[%emt 0:06:58]} 9. Nxc6 $14 {[%emt 0:00:56]} dxc6 {[%emt 0:01:32]} 10. h3 {[%emt 0:00:36]} e5 {[%emt 0:08:00]} 11. Be3 {[%emt 0:01:25]} Be6 {[%emt 0:12:18]} 12. Qd3 {[%emt 0:09:34]} Rd8 {[%emt 0:09:32]} 13. Qc2 {[%emt 0:01:54]} Rg8 {[%emt 0:04:09]} 14. Rfd1 {[%emt 0:02:58]} Rxd1+ {[%emt 0:00:29]} 15. Rxd1 {[%emt 0:00:10]} g5 {[%emt 0:02:40]} 16. Na4 {[%emt 0:03:47]} Be7 {[%emt 0:00:57]} 17. Bb6 {[%emt 0:06:20]} Qc8 {[%emt 0:00:31]} 18. Bc5 {[%emt 0:00:42]} g4 {[%emt 0:07:54]} 19. Bxe7 {[%emt 0:03:09]} Kxe7 {[%emt 0:00:17]} 20. Qd3 {[%emt 0:07:31]} Rd8 {[%emt 0:10:12]} 21. Qxd8+ {[%emt 0:00:21]} Qxd8 {[%emt 0:00:06]} 22. Rxd8 {[%emt 0:00:10]} Kxd8 {[%emt 0:00:01]} 23. hxg4 {[%emt 0:01:55]} hxg4 {[%emt 0:00:51]} 24. Nc5 {[%emt 0:01:16]} Kc7 {[%emt 0:01:07]} 25. Kh2 {[%emt 0:04:51]} Bc8 {[%emt 0:02:23]} 26. Nd3 {[%emt 0:04:39]} Nxe4 {[%emt 0:01:07]} 27. Nxe5 {[%emt 0:03:13]} f6 {[%emt 0:07:39]} 28. Nxg4 {[%emt 0:09:34]} Bxg4 {[%emt 0:00:08]} 29. Bxg4 {[%emt 0:00:07]} Nxf2 {[%emt 0:00:05]} 30. Kg3 {[%emt 0:11:16]} Nd3 {[%emt 0:00:31]} 31. b3 {[%emt 0:02:20]} Nc1 {[%emt 0:00:51]} 32. Kf4 {[%emt 0:00:09]} Kd8 {[%emt 0:00:04]} 33. Be6 {[%emt 0:02:00]} b6 {[%emt 0:04:13]} 34. Kf5 {[%emt 0:04:46]} Ke7 {[%emt 0:00:10]} 35. b4 {[%emt 0:02:09]} Nxa2 {[%emt 0:09:29]} 36. c5 Nxb4 37. cxb6 {[%emt 0:00:31]} c5 {[%emt 0:00:12]} 38. Bc4 {[%emt 0:01:04]} a5 {[%emt 0:00:36]} 39. Bb5 {[%emt 0:02:18]} Kd6 {[%emt 0:00:29]} 40. b7 {[%emt 0:03:48]} Kc7 {[%emt 0:00:01]} 41. Kxf6 {[%emt 0:00:08]} Kxb7 {[%emt 0:02:26]} 42. g4 {[%emt 0:00:18]} Kc7 {[%emt 0:03:32]} 43. Bc4 {[%emt 0:01:41]} Kd6 {[%emt 0:02:29]} 44. g5 {[%emt 0:00:42]} Nc6 {[%emt 0:00:32]} 45. g6 {[%emt 0:01:46]} Ne7 {[%emt 0:00:10]} 46. g7 {[%emt 0:00:15]} a4 {[%emt 0:00:03]} 47. Ba2 {[%emt 0:02:29]} Kd7 {[%emt 0:00:17]} 48. Be6+ {[%emt 0:01:26]} Kd6 {[%emt 0:00:08]} 49. Bc4 {[%emt 0:00:13]} Kd7 {[%emt 0:01:03]} 50. Bb5+ {[%emt 0:01:17]} Kd6 {[%emt 0:00:03]} 51. Bxa4 {[%emt 0:00:08]} c4 {[%emt 0:00:32]} 52. Bc2 {[%emt 0:01:10]} Ng8+ {[%emt 0:00:35]} 53. Kf7 {[%emt 0:02:20]} Nh6+ {[%emt 0:00:09]} 54. Kg6 {[%emt 0:00:03]} Ng8 {[%emt 0:00:04]} 55. Bb3 1/2-1/2

[Event "POR-chT 1st Divison 2018"]
[Site "Maia"]
[Date "2018.07.22"]
[Round "9"]
[White "Cruz, Jorge Filipe Egas"]
[Black "Guerreiro, Nuno"]
[Result "1/2-1/2"]
[ECO "B00"]
[WhiteElo "2159"]
[BlackElo "2050"]
[Annotator "NA"]
[PlyCount "95"]
[EventDate "2018.07.16"]
[EventType "team-tourn"]
[EventCountry "POR"]
[SourceTitle "playchess.com"]
[Source "ChessBase"]
[SourceQuality "1"]
[TimeControl "5400+30"]

1. e4 {[%emt 0:00:00]} Nc6 {[%emt 0:00:42]} 2. Nf3 {[%emt 0:00:18]} Nf6 {[%emt 0:00:50]} 3. e5 {[%emt 0:01:21]} Nd5 {[%emt 0:00:14]} 4. d4 {[%emt 0:03:28]} d6 {[%emt 0:01:48]} 5. exd6 {[%emt 0:05:55]} cxd6 {[%emt 0:01:14]} 6. c3 {[%emt 0:00:35]} e6 {[%emt 0:09:02]} 7. Be2 {[%emt 0:03:07]} Nf6 {[%emt 0:00:56]} 8. O-O {[%emt 0:05:33]} Be7 {[%emt 0:00:46]} 9. Bg5 {[%emt 0:07:48]} O-O {[%emt 0:01:34]} 10. Nbd2 {[%emt 0:03:03]} Rb8 {[%emt 0:03:27]} 11. Bd3 {[%emt 0:11:37]} Nd5 {[%emt 0:02:59]} 12. Bxe7 {[%emt 0:03:00]} Qxe7 {[%emt 0:02:38]} 13. Re1 {[%emt 0:00:31]} Nf4 {[%emt 0:03:02]} 14. Bc2 {[%emt 0:03:53]} b5 {[%emt 0:02:24]} 15. Ne4 {[%emt 0:06:35]} d5 {[%emt 0:11:27]} 16. Nc5 {[%emt 0:01:41]} b4 {[%emt 0:02:08]} 17. g3 {[%emt 0:02:16]} Ng6 {[%emt 0:01:47]} 18. Qd3 {[%emt 0:03:46]} Qf6 {[%emt 0:06:16]} 19. Ne5 {[%emt 0:08:09]} Ncxe5 {[%emt 0:01:39]} 20. dxe5 {[%emt 0:01:46]} Qe7 {[%emt 0:00:28]} 21. Nb3 {[%emt 0:02:54]} bxc3 {[%emt 0:01:36]} 22. bxc3 {[%emt 0:01:15]} Rb6 {[%emt 0:01:23]} 23. h4 {[%emt 0:00:55]} Ba6 {[%emt 0:00:35]} 24. Qf3 {[%emt 0:03:04]} Rc8 {[%emt 0:00:54]} 25. h5 {[%emt 0:01:08]} Nf8 {[%emt 0:00:39]} 26. Rad1 {[%emt 0:01:30]} Rbc6 {[%emt 0:01:27]} 27. Re3 {[%emt 0:00:35]} h6 {[%emt 0:03:42]} 28. Rd4 {[%emt 0:05:02]} Qc7 {[%emt 0:10:19]} 29. Rg4 {[%emt 0:06:56]} Nh7 {[%emt 0:04:44]} 30. Nd4 {[%emt 0:01:48]} Ng5 {[%emt 0:02:20]} 31. Rxg5 {[%emt 0:01:14]} hxg5 {[%emt 0:00:03]} 32. Nxc6 {[%emt 0:00:07]} Qxc6 {[%emt 0:00:16]} 33. Qg4 {[%emt 0:01:43]} Qc4 {[%emt 0:00:27]} 34. Qxc4 {[%emt 0:02:03]} Rxc4 {[%emt 0:01:28]} 35. Bb3 {[%emt 0:00:48]} Rc5 {[%emt 0:03:42]} 36. f3 {[%emt 0:00:13]} Ra5 {[%emt 0:00:35]} 37. Kf2 {[%emt 0:00:51]} Ra3 {[%emt 0:01:00]} 38. Re1 {[%emt 0:00:44]} Bb5 {[%emt 0:03:08]} 39. Rb1 {[%emt 0:00:45]} a6 {[%emt 0:00:36]} 40. Ke3 {[%emt 0:00:17]} Be8 {[%emt 0:02:31]} 41. g4 {[%emt 0:00:16]} a5 {[%emt 0:00:28]} 42. Kd4 {[%emt 0:00:34]} a4 {[%emt 0:00:26]} 43. Bc2 {[%emt 0:00:36]} Rxa2 {[%emt 0:00:31]} 44. Bd3 {[%emt 0:00:47]} Kf8 {[%emt 0:02:45]} 45. Rb8 {[%emt 0:00:08]} Ke7 {[%emt 0:00:08]} 46. Rb7+ {[%emt 0:00:12]} Kf8 {[%emt 0:01:16]} 47. Rb8 {[%emt 0:00:04]} Ke7 {[%emt 0:01:22]} 48. Rb7+ {[%emt 0:00:02]} 1/2-1/2

[Event "POR-chT 1st Divison 2018"]
[Site "Maia"]
[Date "2018.07.22"]
[Round "9"]
[White "Eggert, Alberto"]
[Black "Gomes, Rui Pedro De Sousa"]
[Result "1-0"]
[ECO "D00"]
[WhiteElo "2142"]
[BlackElo "1750"]
[Annotator "NA"]
[PlyCount "79"]
[EventDate "2018.07.16"]
[EventType "team-tourn"]
[EventCountry "POR"]
[SourceTitle "playchess.com"]
[Source "ChessBase"]
[SourceQuality "1"]
[TimeControl "5400+30"]

1. d4 {[%emt 0:00:49]} d5 {[%emt 0:00:12]} 2. Nc3 {[%emt 0:00:54]} c6 {[%emt 0:00:40]} 3. Nf3 {[%emt 0:01:49]} Nf6 {[%emt 0:00:18]} 4. Bf4 {[%emt 0:01:33]} Bf5 {[%emt 0:00:42]} 5. e3 {[%emt 0:00:14]} e6 {[%emt 0:00:16]} 6. a3 {[%emt 0:02:29]} Nbd7 {[%emt 0:03:08]} 7. Bd3 {[%emt 0:02:09]} Bg6 $11 {[%emt 0:05:23]} 8. h3 {[%emt 0:06:26]} Be7 {[%emt 0:02:33]} 9. O-O {[%emt 0:04:13]} O-O {[%emt 0:01:44]} 10. Bxg6 {[%emt 0:03:19]} hxg6 {[%emt 0:00:16]} 11. Qd3 {[%emt 0:00:50]} c5 {[%emt 0:05:55]} 12. e4 {[%emt 0:08:39]} cxd4 {[%emt 0:02:30]} 13. Qxd4 {[%emt 0:00:20]} Qb6 {[%emt 0:15:16]} 14. e5 {[%emt 0:14:12]} Ne8 {[%emt 0:07:35]} 15. Qd2 {[%emt 0:13:45]} Rc8 {[%emt 0:07:57]} 16. Be3 {[%emt 0:11:39]} Bc5 {[%emt 0:08:28]} 17. Na4 {[%emt 0:01:13]} Qb5 {[%emt 0:02:17]} 18. Nxc5 {[%emt 0:01:27]} Nxc5 {[%emt 0:00:43]} 19. Nd4 {[%emt 0:07:07]} Qa6 {[%emt 0:02:46]} 20. f3 {[%emt 0:00:32]} Nd7 {[%emt 0:01:23]} 21. Bf4 {[%emt 0:04:11]} Qc4 {[%emt 0:03:27]} 22. Rad1 {[%emt 0:01:47]} Nc7 {[%emt 0:01:44]} 23. b3 {[%emt 0:01:39]} Qc5 {[%emt 0:01:05]} 24. a4 {[%emt 0:00:38]} a6 {[%emt 0:01:31]} 25. Be3 {[%emt 0:00:15]} Qe7 {[%emt 0:01:22]} 26. Bg5 {[%emt 0:02:06]} Qc5 {[%emt 0:02:21]} 27. Rfe1 {[%emt 0:00:29]} b5 {[%emt 0:00:32]} 28. Be3 {[%emt 0:00:12]} Qe7 {[%emt 0:01:03]} 29. Nc6 {[%emt 0:00:21]} Qe8 {[%emt 0:02:37]} 30. Qa5 {[%emt 0:01:02]} f6 {[%emt 0:03:57]} 31. exf6 {[%emt 0:00:19]} gxf6 {[%emt 0:01:08]} 32. Na7 {[%emt 0:00:11]} e5 {[%emt 0:02:28]} 33. Nxc8 {[%emt 0:00:19]} Qxc8 {[%emt 0:00:09]} 34. axb5 {[%emt 0:00:42]} d4 {[%emt 0:00:44]} 35. Bh6 {[%emt 0:01:30]} Re8 {[%emt 0:00:43]} 36. bxa6 {[%emt 0:00:20]} Nxa6 {[%emt 0:00:35]} 37. Qd5+ {[%emt 0:01:05]} Kh7 {[%emt 0:00:25]} 38. Bc1 {[%emt 0:03:42]} Re7 {[%emt 0:00:51]} 39. Rxd4 {[%emt 0:00:32]} Qxc2 {[%emt 0:00:55]} 40. Rh4+ {[%emt 0:00:13]} 1-0

[Event "POR-chT 1st Divison 2018"]
[Site "Maia"]
[Date "2018.07.22"]
[Round "9"]
[White "Turcer, Dusan"]
[Black "Cavaleiro, Daniel Filipe Costa"]
[Result "1/2-1/2"]
[ECO "E18"]
[WhiteElo "2039"]
[BlackElo "1987"]
[Annotator "NA"]
[PlyCount "90"]
[EventDate "2018.07.16"]
[EventType "team-tourn"]
[EventCountry "POR"]
[SourceTitle "playchess.com"]
[Source "ChessBase"]
[SourceQuality "1"]
[TimeControl "5400+30"]

1. d4 {[%emt 0:00:00]} Nf6 {[%emt 0:00:36]} 2. Nf3 {[%emt 0:00:00]} e6 {[%emt 0:00:13]} 3. c4 {[%emt 0:00:17]} b6 {[%emt 0:00:12]} 4. g3 {[%emt 0:00:06]} Bb7 {[%emt 0:00:08]} 5. Bg2 {[%emt 0:00:06]} Be7 {[%emt 0:00:06]} 6. O-O {[%emt 0:00:08]} O-O {[%emt 0:00:07]} 7. Nc3 {[%emt 0:00:24]} d5 {[%emt 0:00:14]} 8. Ne5 {[%emt 0:01:28]} c6 {[%emt 0:01:59]} 9. Bf4 {[%emt 0:07:08]} Nbd7 {[%emt 0:09:18]} 10. b3 $11 {[%emt 0:01:41] LiveBook: 5 Games} Nxe5 {[%emt 0:06:39]} 11. Bxe5 {[%emt 0:00:41]} Ng4 {[%emt 0:02:22]} 12. Bf4 {[%emt 0:00:04]} Bg5 {[%emt 0:02:29]} 13. e4 {[%emt 0:08:35]} Bxf4 {[%emt 0:02:11]} 14. Qxg4 {[%emt 0:08:46]} Bd2 {[%emt 0:04:57]} 15. Nb1 {[%emt 0:00:21]} Bh6 {[%emt 0:00:18]} 16. Rd1 {[%emt 0:05:39]} b5 {[%emt 0:14:06]} 17. Qe2 {[%emt 0:07:02]} bxc4 {[%emt 0:03:13]} 18. bxc4 {[%emt 0:04:52]} Ba6 {[%emt 0:00:22]} 19. Na3 {[%emt 0:00:09]} Qa5 {[%emt 0:05:39]} 20. Qd3 {[%emt 0:00:41]} Rab8 {[%emt 0:02:16]} 21. f4 {[%emt 0:04:12]} Rb2 {[%emt 0:08:30]} 22. e5 {[%emt 0:06:30]} c5 {[%emt 0:02:48]} 23. Rdb1 {[%emt 0:07:31]} Rd2 {[%emt 0:08:59]} 24. Qb3 {[%emt 0:00:18]} dxc4 {[%emt 0:00:36]} 25. Nxc4 {[%emt 0:00:02]} Bxc4 {[%emt 0:00:12]} 26. Qxc4 {[%emt 0:00:02]} cxd4 {[%emt 0:06:20]} 27. Rd1 {[%emt 0:08:52]} Qc3 {[%emt 0:01:17]} 28. Qxc3 {[%emt 0:03:13]} dxc3 {[%emt 0:00:07]} 29. Rxd2 {[%emt 0:00:09]} cxd2 {[%emt 0:00:07]} 30. h4 {[%emt 0:00:06]} Rc8 {[%emt 0:01:28]} 31. Rd1 {[%emt 0:00:03]} Rc1 {[%emt 0:01:17]} 32. Bf3 {[%emt 0:00:02]} f6 {[%emt 0:00:14]} 33. exf6 {[%emt 0:00:43]} gxf6 {[%emt 0:00:10]} 34. Kf2 {[%emt 0:00:24]} Rxd1 {[%emt 0:00:03]} 35. Bxd1 {[%emt 0:00:05]} e5 {[%emt 0:00:23]} 36. fxe5 {[%emt 0:00:40]} fxe5 {[%emt 0:00:10]} 37. Kf3 {[%emt 0:01:10]} Kf7 {[%emt 0:01:51]} 38. Ke4 {[%emt 0:00:17]} Kf6 {[%emt 0:02:23]} 39. Bg4 {[%emt 0:01:05]} Bf8 {[%emt 0:00:37]} 40. Bd1 {[%emt 0:00:35]} h6 {[%emt 0:00:31]} 41. Bg4 {[%emt 0:00:07]} Bb4 {[%emt 0:01:41]} 42. Bd1 {[%emt 0:00:08]} Ba5 {[%emt 0:00:46]} 43. g4 {[%emt 0:00:23]} Bc3 {[%emt 0:01:11]} 44. Kd3 {[%emt 0:00:27]} Bb4 {[%emt 0:00:54]} 45. Ke4 {[%emt 0:00:08]} Bd6 {[%emt 0:00:16] Kxe5+ Kxe5} 1/2-1/2